bitfinex-derivatives/quotes_ETHF0:USTF0_20241104
["timestamp","ask_amount","ask_price","bid_price","bid_amount"]
[1730739811551,2.251,2411.4,2411.3,0.4149]
[1730739811862,2.251,2411.4,2411.2,0.41491]
[1730739811863,2.66588,2411.4,2411.2,0.41491]
[1730739812359,2.251,2411.4,2411.1,3.2078]
[1730739812561,0.41491,2411.3,2411.2,0.41491]
[1730739812764,2.66589,2411.4,2411.2,0.4149]
[1730739812957,0.4149,2411.3,2411.2,0.4149]
[1730739813467,0.4149,2411.3,2410.8,1.6265614]
[1730739813468,4.5621,2411.3,2410.8,1.6265614]
[1730739813665,0.41491,2411.3,2410.8,1.6265614]
[1730739814060,0.41493,2411.1,2411.0,0.41494]
[1730739814970,0.41496,2410.9,2410.8,2.0415414]
[1730739815159,0.41496,2410.9,2410.8,1.6265614]
[1730739815364,4.56296,2410.9,2410.8,1.6265614]
[1730739815862,45.36296,2410.9,2410.8,1.6265614]
[1730739816262,41.21496,2410.9,2410.8,2.0415414]
[1730739816467,41.21496,2410.9,2410.3,16.55628245]
[1730739816468,48.95104608,2410.9,2410.3,11.04942245]
[1730739816656,0.41505,2410.4,2410.3,11.04942245]
[1730739816854,7.77165,2410.4,2410.3,11.04942245]
[1730739817059,6.81065,2410.4,2410.3,11.04942245]
[1730739817262,47.61065,2410.4,2410.3,11.04942245]
[1730739817561,47.61065,2410.4,2410.3,11.46449245]
[1730739817562,40.8,2410.4,2410.3,11.46449245]
[1730739817767,40.8,2410.4,2410.3,5.97413017]
[1730739818867,40.8,2410.4,2410.3,5.55906017]
[1730739819169,41.21505,2410.4,2410.3,5.55906017]
[1730739820274,41.21505,2410.4,2410.3,5.97413017]
[1730739820573,41.21505,2410.4,2410.3,5.55906017]
[1730739821066,41.21505,2410.4,2410.3,5.97413017]
[1730739821370,41.21505,2410.4,2410.3,5.55906017]
[1730739821968,40.8,2410.4,2410.3,5.97413017]
[1730739822165,41.21505,2410.4,2410.3,5.55906017]
[1730739822873,45.36385,2410.4,2410.3,5.55906017]
[1730739823169,48.57165,2410.4,2410.3,5.55906017]
[1730739823372,0.41518,2409.7,2409.6,0.41518]
[1730739823575,0.41517,2409.7,2409.6,0.41518]
[1730739823975,4.62585608,2410.1,2409.5,3.2078]
[1730739823976,3.58808608,2410.1,2409.5,3.2078]
[1730739824268,0.41515,2409.9,2409.8,0.41515]
[1730739824471,0.41516,2409.8,2409.7,0.41516]
[1730739825176,0.41515,2409.9,2409.8,0.41515]
[1730739825362,0.41518,2409.7,2409.6,0.41518]
[1730739825774,0.41516,2409.8,2409.7,0.41517]
[1730739825965,4.62586608,2410.1,2409.3,5.48777]
[1730739826165,0.41517,2409.7,2409.6,0.41518]
[1730739826569,3.58808608,2409.7,2409.3,5.48777]
[1730739826772,3.58808608,2409.7,2409.6,0.41519]
[1730739827173,4.24548,2410.3,2409.8,0.41515]
[1730739827174,3.58808608,2409.9,2409.8,0.41515]
[1730739827372,3.58808608,2409.9,2409.3,5.48777]
[1730739827578,1.03768,2410.3,2409.5,0.41519]
[1730739827579,0.4152,2409.6,2409.5,0.41519]
[1730739827878,4.00326608,2409.7,2409.6,0.41519]
[1730739828179,4.00326608,2409.7,2409.3,4.4497]
[1730739828180,0.41519,2409.6,2409.5,0.41519]
[1730739828376,3.58808608,2409.7,2409.3,4.4497]
[1730739828674,0.41519,2409.6,2409.5,0.4152]
[1730739828975,3.58808608,2409.7,2409.4,3.2078]
[1730739829177,0.41519,2409.6,2409.3,4.86493]
[1730739829364,4.00327608,2409.7,2409.4,0.41522]
[1730739829772,0.4152,2409.6,2409.3,4.86493]
[1730739829967,3.58808608,2409.7,2409.3,4.4497]
[1730739830166,4.00326608,2409.7,2409.4,0.41521]
[1730739830576,3.58808608,2409.7,2409.3,7.6575]
[1730739830784,3.58808608,2409.4,2408.5,4.24624]
[1730739830974,3.58808608,2409.0,2408.7,2.3022]
[1730739831278,40.8,2408.9,2408.8,0.41533]
[1730739831974,0.41523,2409.4,2408.8,8.59859695]
[1730739832176,3.58808608,2409.8,2408.8,4.44739695]
[1730739832375,0.41513,2410.0,2409.6,3.2078]
[1730739832579,41.21515,2409.9,2409.7,7.32176]
[1730739832974,40.8,2409.9,2409.8,0.41515]
[1730739833179,40.8,2409.9,2409.7,6.9066]
[1730739833379,40.8,2409.9,2409.8,0.41515]
[1730739833984,40.8,2409.9,2409.7,6.9066]
[1730739833985,5.04049743,2410.1,2409.9,0.41513]
[1730739834180,5.04049743,2410.1,2409.9,3.62293]
[1730739834483,40.8,2410.0,2409.9,0.41514]
[1730739834877,40.8,2410.0,2409.8,3.2078]
[1730739834878,0.41514,2409.9,2409.8,3.2078]
[1730739835084,40.8,2410.0,2409.8,3.2078]
[1730739835287,41.21513,2410.0,2409.8,3.62294]
[1730739835584,1.03730135,2410.1,2409.9,4.84656948]
[1730739835784,9.38350462,2411.0,2410.2,1.03771]
[1730739835982,8.34612462,2411.0,2410.4,3.2078]
[1730739836297,8.34612462,2411.0,2410.3,2.3483]
[1730739836298,1.03746,2410.8,2410.3,5.97116]
[1730739836585,0.41505,2410.5,2410.3,5.97116]
[1730739836985,0.41505,2410.4,2410.3,5.5561]
[1730739837183,3.58808608,2410.4,2410.0,3.2078]
[1730739837386,0.4151,2410.1,2410.0,3.2078]
[1730739837782,41.2151,2410.1,2410.0,3.2078]
[1730739838289,40.8,2410.1,2410.0,3.2078]
[1730739838488,40.8,2410.1,2410.0,3.62292]
[1730739838884,41.2151,2410.1,2410.0,3.2078]
[1730739839277,40.8,2410.1,2410.0,3.62292]
[1730739839584,40.8,2410.1,2410.0,8.31022]
[1730739840087,2.201,2411.2,2410.0,13.7466223]
[1730739840286,3.58808608,2411.2,2410.7,3.2078]
[1730739840590,0.41498,2410.8,2410.7,3.2078]
[1730739841289,1.03733,2411.1,2410.5,3.62283]
[1730739841487,0.41502,2410.6,2410.5,3.2078]
[1730739841690,0.41502,2410.6,2410.1,0.4151]
[1730739841691,0.41508,2410.3,2410.1,0.4151]
[1730739841884,4.62564608,2410.6,2410.1,0.4151]
[1730739842188,5.93498608,2410.8,2410.0,4.6873]
[1730739842391,0.41507,2410.3,2410.1,0.41509]
[1730739842582,0.41508,2410.3,2410.1,0.4151]
[1730739842784,0.41505,2410.4,2410.2,0.41508]
[1730739843184,2.3469,2410.8,2410.1,3.2078]
[1730739843185,6.97245608,2410.8,2410.1,3.2078]
[1730739843480,41.83753,2410.7,2410.2,0.41508]
[1730739843685,0.41507,2410.3,2410.1,3.2078]
[1730739843887,0.41503,2410.5,2410.1,3.62289]
[1730739844093,4.62564608,2410.6,2410.1,3.62289]
[1730739844391,0.41508,2410.3,2410.1,3.62289]
[1730739844592,3.58808608,2410.6,2410.2,0.41509]
[1730739844783,0.41507,2410.3,2410.1,3.2078]
[1730739844988,0.41507,2410.3,2410.2,0.41509]
[1730739845192,3.58808608,2410.6,2410.1,3.2078]
[1730739845384,0.41508,2410.3,2410.2,0.41508]
[1730739845886,0.41508,2410.3,2410.1,3.2078]
[1730739845887,0.41509,2410.2,2410.1,3.2078]
[1730739846284,4.56389,2410.2,2410.1,3.2078]
[1730739846486,41.21509,2410.2,2410.1,3.2078]
[1730739846686,45.36389,2410.2,2410.1,3.2078]
[1730739846882,44.9488,2410.2,2409.2,3.2078]
[1730739847187,0.4152,2409.6,2409.5,0.41521]
[1730739847889,41.2152,2409.6,2409.5,0.41521]
[1730739848292,41.2152,2409.6,2409.3,0.41524]
[1730739848293,0.41521,2409.5,2409.3,0.41524]
[1730739848493,0.41524,2409.3,2409.2,5.4215]
[1730739848692,0.41525,2409.3,2409.2,0.41525]
[1730739848892,4.1504,2409.3,2409.0,2.2586]
[1730739849097,3.58808608,2409.4,2409.0,2.2586]
[1730739849293,41.8375166,2409.6,2409.0,2.2586]
[1730739849488,41.8375166,2409.6,2409.5,0.41521]
[1730739849890,41.8375166,2409.6,2409.5,3.62301]
[1730739850396,3.2078,2410.3,2409.5,8.23599276]
[1730739850693,0.415,2410.7,2410.2,3.2078]
[1730739850898,4.00307608,2410.8,2410.6,0.41501]
[1730739851103,3.58808608,2410.8,2410.6,0.41501]
[1730739851314,0.415,2410.7,2410.6,0.41502]
[1730739851594,40.8,2410.7,2410.6,0.41502]
[1730739851999,40.8,2410.7,2410.6,3.62282]
[1730739852494,4.00301608,2411.1,2411.0,0.41495]
[1730739852900,3.58808608,2411.1,2410.6,3.2078]
[1730739853097,4.00302608,2411.1,2411.0,0.41495]
[1730739853290,4.00302608,2411.1,2410.6,4.24533]
[1730739853291,44.38808608,2411.1,2410.6,4.24533]
[1730739853492,40.8,2411.1,2411.0,0.41495]
[1730739858995,40.8,2411.1,2411.0,3.62275]
[1730739860395,40.8,2411.1,2411.0,3.2078]
[1730739860594,41.21493,2411.1,2411.0,3.2078]
[1730739860989,40.8,2411.1,2411.0,3.62275]
[1730739861594,1.45174813,2411.2,2411.1,0.41493]
[1730739861595,1.03682813,2411.2,2411.1,0.41493]
[1730739861797,1.03682813,2411.2,2411.1,2.70263]
[1730739862096,41.83682813,2411.2,2411.1,10.48951668]
[1730739862300,0.41479,2411.9,2411.4,0.41488]
[1730739862606,0.41485,2411.6,2411.4,0.41488]
[1730739862798,40.8,2411.7,2411.5,0.41486]
[1730739862996,40.8,2411.7,2411.1,4.5465]
[1730739863302,40.8,2411.7,2411.1,7.7543]
[1730739863608,40.8,2411.7,2411.6,0.41484]
[1730739863805,6.79588608,2412.2,2411.4,3.2078]
[1730739864009,6.79588608,2412.2,2411.9,0.41479]
[1730739864010,3.2078,2412.2,2411.9,0.41479]
[1730739864301,3.2078,2412.2,2412.1,0.41476]
[1730739864506,5.21332,2412.4,2411.9,5.5735]
[1730739864507,0.41473,2412.3,2411.9,5.5735]
[1730739864703,40.8,2412.2,2412.1,0.41475]
[1730739865805,40.8,2412.2,2412.1,4.56035]
[1730739866396,0.41462,2412.9,2412.1,5.1825]
[1730739866602,3.58808608,2413.0,2412.1,4.2447]
[1730739866893,7.6207,2413.1,2412.8,0.41464]
[1730739866894,5.5317,2413.1,2412.8,0.41464]
[1730739867199,1.44974907,2413.4,2412.5,7.83260608]
[1730739867397,0.41457,2413.2,2413.0,0.4146]
[1730739867602,0.41457,2413.2,2412.9,3.2078]
[1730739867603,0.41456,2413.3,2412.9,3.2078]
[1730739867802,0.41456,2413.3,2413.1,0.41457]
[1730739868113,4.24423,2413.2,2412.5,0.41468]
[1730739868399,0.41471,2412.4,2412.3,3.2078]
[1730739868602,3.58808608,2412.7,2411.8,4.5922]
[1730739868808,3.58808608,2412.7,2411.3,6.79588608]
[1730739868809,3.2078,2412.1,2411.3,6.79588608]
[1730739869099,3.2078,2412.1,2411.3,5.4609]
[1730739869308,0.41481,2411.9,2411.3,5.4609]
[1730739869499,3.2078,2412.1,2411.3,5.4609]
[1730739869997,3.58808608,2412.4,2411.9,0.41479]
[1730739870200,0.41476,2412.2,2411.9,0.41479]
[1730739870512,0.41478,2412.0,2411.7,0.41482]
[1730739870806,0.41478,2412.0,2411.8,0.4148]
[1730739871018,0.41478,2412.0,2411.5,3.2078]
[1730739871019,0.41481,2411.9,2411.5,3.2078]
[1730739871306,0.4148,2411.9,2411.7,0.41482]
[1730739871496,3.2078,2412.2,2411.5,3.2078]
[1730739871699,3.2078,2412.2,2411.9,0.41478]
[1730739871907,3.2078,2412.5,2411.9,3.2078]
[1730739872098,1.03664,2412.7,2412.0,4.473]
[1730739872300,0.4147,2412.5,2412.2,0.41473]
[1730739872506,0.41473,2412.3,2412.1,0.41475]
[1730739872702,0.4147,2412.5,2412.2,0.41473]
[1730739873006,3.2078,2412.7,2412.0,4.473]
[1730739873203,3.2078,2412.7,2412.3,0.41471]
[1730739873510,40.8,2412.6,2412.4,0.4147]
[1730739873815,40.8,2412.6,2412.5,0.41469]
[1730739874605,40.8,2412.6,2412.5,3.62249]
[1730739874812,40.8,2412.6,2412.5,0.41469]
[1730739875321,40.8,2412.6,2412.5,4.55949]
[1730739875810,40.8,2412.6,2412.5,6.75809]
[1730739876404,0.41461,2413.0,2412.8,0.41464]
[1730739876608,0.4146,2413.1,2412.6,0.41467]
[1730739876807,1.03641,2413.3,2412.6,2.3392]
[1730739877003,40.8,2413.0,2412.6,2.3392]
[1730739877204,0.41465,2412.7,2412.5,0.41468]
[1730739877409,0.41469,2412.5,2412.3,0.41472]
[1730739877712,0.41469,2412.5,2412.2,0.41473]
[1730739877911,0.41476,2412.1,2412.0,2.2504]
[1730739878107,0.41482,2411.8,2411.6,0.41484]
[1730739878307,0.41482,2411.8,2411.5,2.2086]
[1730739878308,0.41478,2412.0,2411.8,0.4148]
[1730739878510,40.8,2411.9,2411.8,0.4148]
[1730739879314,40.8,2411.9,2411.5,2.2086]
[1730739879607,44.0078,2411.9,2411.3,2.3982]
[1730739879813,41.2148,2411.9,2411.7,0.41482]
[1730739880214,41.2148,2411.9,2411.3,4.6068]
[1730739880215,40.8,2411.9,2411.8,0.41481]
[1730739881221,40.8,2411.9,2411.8,3.62261]
[1730739881906,0.41483,2411.7,2411.5,0.41485]
[1730739882911,40.8,2411.9,2411.3,4.6068]
[1730739883315,0.41488,2411.4,2411.3,2.3982]
[1730739884013,0.41487,2411.5,2411.3,2.81308]
[1730739884216,3.2078,2411.8,2411.3,2.3982]
[1730739884413,40.8,2411.9,2411.3,2.3982]
[1730739884621,41.2148,2411.9,2411.7,0.41482]
[1730739884817,40.8,2411.9,2411.2,4.24507]
[1730739885018,40.8,2411.9,2410.7,1.03749]
[1730739885019,0.41491,2411.3,2410.7,1.03749]
[1730739885312,0.41494,2411.1,2410.9,0.41496]
[1730739885725,5.4106,2411.4,2411.0,0.41493]
[1730739885726,0.41491,2411.3,2411.0,0.41493]
[1730739885922,0.41492,2411.2,2411.0,0.41493]
[1730739886114,0.41492,2411.2,2410.9,3.2078]
[1730739886310,0.41493,2411.1,2410.7,4.5347]
[1730739886513,5.4106,2411.4,2410.7,4.5347]
[1730739886709,0.41491,2411.2,2411.0,0.41493]
[1730739887015,5.4106,2411.4,2411.0,0.41493]
[1730739887321,0.41493,2411.1,2410.9,0.41495]
[1730739887517,0.41503,2410.5,2410.4,0.55505312]
[1730739887912,41.21503,2410.5,2410.4,0.55505312]
[1730739888520,40.8,2410.5,2410.4,0.55505312]
[1730739888831,40.8,2410.5,2410.4,0.97010312]
[1730739889721,40.8,2410.5,2410.4,4.17790312]
[1730739890322,3.2078,2411.0,2410.4,7.91165312]
[1730739890527,0.41499,2410.8,2410.6,0.415]
[1730739890819,0.41499,2410.8,2410.5,0.41502]
[1730739890820,0.415,2410.7,2410.5,0.41502]
[1730739891521,0.415,2410.7,2410.5,0.41503]
[1730739891722,40.8,2410.8,2410.6,0.41501]
[1730739891723,0.41499,2410.8,2410.6,0.41501]
[1730739891923,6.79588608,2411.0,2410.4,3.2078]
[1730739892122,0.41499,2410.8,2410.6,0.41501]
[1730739892322,3.2078,2411.0,2410.9,0.41496]
[1730739892516,3.62275,2411.0,2410.8,0.41497]
[1730739893620,3.2078,2411.0,2410.8,0.41497]
[1730739893820,3.62276,2411.0,2410.8,0.41497]
[1730739894623,3.2078,2411.0,2410.5,2.5185563]
[1730739894927,3.58808608,2410.8,2410.4,3.2078]
[1730739895320,0.41502,2410.6,2410.4,3.62284]
[1730739895624,3.58808608,2410.8,2410.4,3.2078]
[1730739895830,0.41501,2410.7,2410.5,0.41502]
[1730739896118,3.58808608,2410.8,2410.5,0.41502]
[1730739896327,0.415,2410.7,2410.5,0.41502]
[1730739896625,0.41499,2410.8,2410.6,0.41502]
[1730739896918,0.41503,2410.6,2410.4,3.62284]
[1730739897317,0.41503,2410.5,2410.4,3.2078]
[1730739897919,7.73688608,2410.5,2409.8,3.45543243]
[1730739898113,0.41512,2410.0,2409.8,1.49757243]
[1730739898317,0.41513,2410.0,2409.8,1.49758243]
[1730739898515,0.41514,2409.9,2409.8,1.08243243]
[1730739898729,0.41514,2409.9,2409.8,1.49758243]
[1730739899024,40.8,2409.9,2409.8,1.49758243]
[1730739899327,40.8,2409.9,2409.8,4.70538243]
[1730739899623,3.2078,2410.4,2409.8,4.29023243]
[1730739899923,4.00313608,2410.5,2410.3,0.41506]
[1730739900122,0.41507,2410.3,2410.2,0.41508]
[1730739900319,0.41501,2410.7,2410.1,3.2078]
[1730739900529,3.2078,2411.1,2410.6,3.2078]
[1730739900821,3.62274,2411.1,2410.9,0.41496]
[1730739901023,0.41495,2411.0,2410.9,0.41496]
[1730739901226,0.41495,2411.0,2410.8,0.41497]
[1730739901419,0.41498,2410.8,2410.7,2.3822]
[1730739901620,0.41502,2410.7,2410.5,0.41503]
[1730739901819,4.62548608,2411.0,2410.5,0.41503]
[1730739902024,0.41502,2410.6,2410.5,0.41503]
[1730739902228,0.41502,2410.6,2410.4,2.71234]
[1730739902526,0.41502,2410.6,2410.4,2.2973]
[1730739902828,0.41502,2410.6,2410.4,2.71234]
[1730739903125,1.03744,2410.9,2410.4,2.71234]
[1730739903327,0.41503,2410.5,2410.4,2.2973]
[1730739903523,0.41505,2410.4,2410.3,3.2078]
[1730739904318,41.21505,2410.4,2410.3,3.2078]
[1730739904523,40.8,2410.4,2410.3,3.62287]
[1730739904713,40.8,2410.4,2410.3,7.77167]
[1730739904919,3.58808608,2410.8,2410.3,3.2078]
[1730739905113,4.62555608,2410.8,2410.3,3.2078]
[1730739905323,40.8,2410.7,2410.3,3.2078]
[1730739905528,0.41505,2410.4,2410.3,3.2078]
[1730739905823,7.8775,2411.2,2410.7,0.415]
[1730739906129,0.41496,2411.0,2410.8,0.41498]
[1730739906328,40.8,2410.9,2410.8,0.41498]
[1730739906523,0.41492,2411.2,2411.0,0.41494]
[1730739906715,1.0372,2411.5,2411.0,0.41494]
[1730739907031,0.4149,2411.3,2411.0,0.41494]
[1730739907331,0.41493,2411.2,2411.0,0.41494]
[1730739907631,0.41492,2411.2,2410.7,1.0375]
[1730739907822,0.41492,2411.2,2411.0,0.41494]
[1730739908021,40.8,2411.4,2410.9,3.2078]
[1730739908324,40.8,2411.4,2411.3,0.4149]
[1730739909727,40.8,2411.4,2411.3,4.5621]
[1730739909918,3.2078,2412.0,2411.7,0.41483]
[1730739910118,3.2078,2412.0,2411.8,0.4148]
[1730739910119,0.4148,2411.9,2411.8,0.4148]
[1730739910320,3.2078,2412.0,2411.5,1.03715]
[1730739910321,0.41482,2411.8,2411.7,0.41482]
[1730739910520,0.41482,2411.8,2411.5,2.3578]
[1730739910721,0.41482,2411.8,2411.7,0.41483]
[1730739911335,3.2078,2412.0,2411.5,2.3578]
[1730739911523,0.41484,2411.6,2411.5,2.77265]
[1730739911721,0.41482,2411.8,2411.7,0.41482]
[1730739911918,3.2078,2412.0,2411.5,2.3578]
[1730739912220,3.2078,2412.0,2411.8,0.4148]
[1730739912420,3.2078,2412.0,2411.5,3.39495]
[1730739912421,3.62259,2412.0,2411.5,3.39495]
[1730739912621,3.2078,2412.0,2411.5,3.39495]
[1730739912822,2.239,2412.3,2411.7,1.03706]
[1730739913025,2.239,2412.3,2411.6,4.24492]
[1730739913326,0.41468,2412.6,2412.0,1.03695]
[1730739913524,0.41468,2412.6,2412.5,0.41469]
[1730739913722,0.41468,2412.6,2412.1,2.312]
[1730739914034,41.21468,2412.6,2412.4,0.4147]
[1730739914232,40.8,2412.6,2412.5,0.41469]
[1730739914429,41.21467,2412.6,2412.5,0.41469]
[1730739914727,41.21467,2412.6,2412.3,0.41472]
[1730739914930,41.21467,2412.6,2412.4,0.41469]
[1730739915125,41.21467,2412.6,2412.2,2.3404]
[1730739915126,40.8,2412.6,2412.2,2.3404]
[1730739915330,4.1456,2412.5,2411.6,5.6166]
[1730739915531,4.1456,2412.5,2411.7,0.41483]
[1730739915532,0.41479,2411.9,2411.7,0.41483]
[1730739915831,0.41478,2412.0,2411.8,0.41481]
[1730739916831,5.5716,2412.4,2411.6,9.20468608]
[1730739917125,0.41474,2412.2,2412.1,0.41475]
[1730739917329,0.41474,2412.3,2412.1,0.41475]
[1730739917634,40.8,2412.6,2412.5,0.41469]
[1730739917830,40.8,2412.6,2412.2,2.3583]
[1730739918032,40.8,2412.6,2412.2,0.41474]
[1730739918033,0.41472,2412.3,2412.2,0.41474]
[1730739918328,3.58808608,2412.3,2411.8,2.3583]
[1730739918537,0.41481,2411.8,2411.7,3.62262]
[1730739918728,1.03688,2412.2,2411.5,2.3404]
[1730739918729,3.58808608,2412.1,2411.5,2.3404]
[1730739918927,0.41484,2411.6,2411.4,2.3583]
[1730739919131,0.41484,2411.6,2411.5,0.41486]
[1730739919526,0.41484,2411.6,2411.4,2.77317]
[1730739919727,40.8,2411.5,2411.3,3.62269]
[1730739920037,40.8,2411.5,2411.0,2.3681]
[1730739920330,40.8,2411.5,2410.7,3.2078]
[1730739920331,0.41494,2411.1,2410.9,0.41495]
[1730739920526,0.41496,2411.0,2410.8,0.41497]
[1730739920726,1.45215,2411.3,2410.8,0.41497]
[1730739921034,0.41495,2411.0,2410.9,0.41496]
[1730739921222,0.41491,2411.2,2410.8,0.41498]
[1730739921423,2.3563,2411.4,2410.7,3.2078]
[1730739921730,0.4149,2411.3,2411.0,3.2078]
[1730739921930,0.41492,2411.2,2411.1,0.41493]
[1730739922122,2.3563,2411.4,2410.9,3.2078]
[1730739922325,2.3563,2411.4,2411.0,3.2078]
[1730739922620,0.4149,2411.3,2411.1,0.41492]
[1730739923226,2.77118,2411.4,2410.7,1.0375]
[1730739923532,0.41488,2411.4,2411.1,3.2078]
[1730739923835,41.21487,2411.5,2411.4,0.41488]
[1730739924141,40.8,2411.5,2411.4,0.41488]
[1730739924534,40.8,2411.5,2411.4,3.62268]
[1730739924831,6.79588608,2412.1,2411.4,4.1472]
[1730739925029,6.79588608,2412.1,2411.2,2.3161]
[1730739925030,3.2078,2412.1,2411.7,3.2078]
[1730739925235,0.41478,2412.0,2411.9,0.41478]
[1730739925432,41.21478,2412.0,2411.9,0.41478]
[1730739926741,40.8,2412.0,2411.9,0.41478]
[1730739927842,40.8,2412.0,2411.9,4.56118]
[1730739928539,0.4147,2412.5,2412.3,0.41471]
[1730739928731,4.4597,2412.9,2412.0,9.02068608]
[1730739928939,0.41466,2412.7,2412.5,0.41468]
[1730739929331,0.41466,2412.7,2412.3,3.2078]
[1730739929332,40.8,2412.8,2412.6,0.41467]
[1730739929636,0.41466,2412.7,2412.5,0.41468]
[1730739929835,0.41466,2412.7,2412.6,0.41467]
[1730739930148,0.41466,2412.7,2412.3,3.2078]
[1730739930440,0.41466,2412.7,2412.6,0.41467]
[1730739930838,40.8,2412.8,2412.3,3.2078]
[1730739931038,40.8,2412.8,2412.7,0.41465]
[1730739932231,40.8,2412.8,2412.7,3.62245]
[1730739933238,40.8,2412.8,2412.7,0.41465]
[1730739933844,40.8,2412.8,2412.7,3.62245]
[1730739934149,40.8,2412.8,2412.7,0.41465]
[1730739934348,40.8,2412.8,2412.7,3.62245]
[1730739934540,40.8,2412.8,2412.7,0.41465]
[1730739935135,40.8,2412.8,2412.7,3.62245]
[1730739936233,0.41458,2413.2,2412.7,3.2078]
[1730739936441,1.44974907,2413.4,2413.1,0.41457]
[1730739936636,1.44974907,2413.4,2413.3,0.41455]
[1730739937157,3.58808608,2413.7,2413.0,3.2078]
[1730739937449,4.24396,2413.9,2412.9,0.41462]
[1730739937450,0.4146,2413.1,2412.9,0.41462]
[1730739937645,45.04407,2413.6,2413.1,0.41458]
[1730739937851,1.03634,2413.4,2412.8,2.2988]
[1730739938039,41.83627,2413.6,2412.8,2.2988]
[1730739938237,1.03632,2413.5,2412.9,0.41461]
[1730739938435,0.41459,2413.1,2412.9,0.41461]
[1730739938651,0.41459,2413.1,2413.0,0.4146]
[1730739938847,2.3225,2413.4,2413.0,0.4146]
[1730739939042,0.41459,2413.1,2412.9,0.41461]
[1730739939743,0.41459,2413.1,2412.9,0.41462]
[1730739940047,0.41458,2413.2,2413.1,0.41458]
[1730739940247,0.41459,2413.1,2413.0,0.4146]
[1730739941036,0.41459,2413.1,2412.8,2.2988]
[1730739941247,0.4146,2413.1,2412.9,0.4146]
[1730739941444,0.4146,2413.1,2413.0,0.4146]
[1730739941748,1.03647,2413.1,2412.4,3.2078]
[1730739941960,0.41468,2412.6,2412.5,0.41469]
[1730739942146,3.58808608,2412.9,2412.6,0.41467]
[1730739942339,0.41465,2412.7,2412.6,0.41467]
[1730739942546,0.41465,2412.7,2412.4,3.2078]
[1730739942547,40.8,2412.7,2412.4,3.2078]
[1730739943045,0.41469,2412.5,2412.4,3.2078]
[1730739943842,4.1448,2412.5,2412.1,5.6055]
[1730739944043,40.8,2412.7,2412.1,5.6055]
[1730739944353,40.8,2412.7,2412.3,0.41472]
[1730739944652,0.41471,2412.4,2412.3,0.41472]
[1730739945055,40.8,2412.7,2412.1,5.6055]
[1730739945256,0.4147,2412.5,2412.4,0.4147]
[1730739945547,40.8,2412.7,2412.5,0.41468]
[1730739945754,41.21466,2412.7,2412.6,0.41467]
[1730739946148,40.8,2412.7,2412.6,0.41467]
[1730739946451,40.8,2412.7,2412.6,3.62247]
[1730739946950,41.21465,2412.7,2412.3,2.3673]
[1730739947153,41.21465,2412.7,2412.6,0.41467]
[1730739947742,41.21465,2412.7,2412.1,5.6841]
[1730739947743,0.41474,2412.2,2412.1,2.3977]
[1730739947948,0.41481,2411.8,2411.7,2.71942]
[1730739948154,3.2078,2412.3,2411.4,2.2932]
[1730739948155,1.03695,2412.0,2411.4,2.2932]
[1730739948449,3.58808608,2412.1,2411.6,0.41484]
[1730739948450,40.8,2411.7,2411.6,0.41484]
[1730739948657,40.8,2411.7,2411.4,2.2932]
[1730739948851,40.8,2411.7,2411.6,0.41484]
[1730739949047,0.41485,2411.6,2411.5,0.41485]
[1730739949250,40.8,2411.7,2411.4,2.2932]
[1730739949450,40.8,2411.7,2411.5,0.41485]
[1730739949655,0.41486,2411.5,2411.4,2.70807]
[1730739949854,40.8,2411.7,2411.4,2.2932]
[1730739950451,0.41486,2411.5,2411.4,2.70807]
[1730739950652,41.21483,2411.7,2411.4,2.2932]
[1730739950855,41.21483,2411.7,2411.6,0.41484]
[1730739951056,40.8,2411.7,2411.6,3.62264]
[1730739951256,40.8,2411.7,2411.6,7.76904]
[1730739951757,0.41472,2412.3,2412.2,0.41474]
[1730739951953,2.2764,2412.6,2411.9,1.03698]
[1730739952155,0.41469,2412.5,2412.2,3.2078]
[1730739952351,0.41471,2412.4,2412.0,2.4178]
[1730739952652,40.8,2412.5,2412.3,0.41472]
[1730739952850,40.8,2412.5,2412.0,2.4178]
[1730739953157,41.2147,2412.5,2412.4,0.41471]
[1730739953550,0.41472,2412.4,2412.3,0.41472]
[1730739953856,0.41474,2412.3,2412.0,2.4178]
[1730739954161,0.41476,2412.1,2412.0,2.83257]
[1730739954355,0.41478,2412.0,2411.9,0.41478]
[1730739955060,40.8,2412.5,2411.9,3.2078]
[1730739955263,0.41478,2412.0,2411.9,3.62258]
[1730739955451,0.41477,2412.1,2412.0,0.41478]
[1730739956453,0.41476,2412.1,2412.0,0.41478]
[1730739956650,0.41475,2412.2,2412.1,0.41475]
[1730739956952,45.42482608,2412.5,2411.9,3.2078]
[1730739956953,0.41476,2412.1,2412.0,0.41476]
[1730739957261,0.41473,2412.3,2412.2,0.41472]
[1730739957951,40.8,2412.5,2411.9,3.2078]
[1730739958153,44.38808608,2412.5,2411.9,3.2078]
[1730739958358,3.47748,2412.4,2411.9,3.2078]
[1730739958550,0.41478,2412.0,2411.9,3.2078]
[1730739958959,2.4407,2412.4,2411.9,3.2078]
[1730739959158,1.0363983,2412.2,2412.1,0.41475]
[1730739960465,1.0363983,2412.2,2411.9,4.24478]
[1730739960466,1.0363983,2412.2,2412.0,0.41476]
[1730739960660,1.0363983,2412.2,2412.1,0.41476]
[1730739960867,1.0363983,2412.2,2411.9,3.2078]
[1730739961470,1.4511383,2412.2,2411.9,3.2078]